[Event "Queens Festival Final Team 2022"]
[Site "Tornelo"]
[Date "2022.06.26"]
[Round "3.4"]
[White "Mammadova, Aysel"]
[Black "Masoumi, Sahar"]
[Result "0-1"]
[ECO "B22"]
[WhiteElo "1893"]
[BlackElo "2004"]
[Annotator "NA RC"]
[PlyCount "60"]
[EventDate "2022.06.24"]
[EventType "team-tourn"]
[EventCountry "NET"]
[SourceTitle "playchess.com"]
[Source "ChessBase"]
[SourceQuality "1"]
[WhiteTeam "Azerbaijan"]
[BlackTeam "Iran"]
[WhiteTeamCountry "AZE"]
[BlackTeamCountry "IRI"]
[TimeControl "180+2"]

1. e4 {[%emt 0:00:02]} c5 {[%emt 0:00:04]} 2. c3 {[%emt 0:00:03]} Nf6 {[%emt 0:00:02]} 3. e5 {[%emt 0:00:02]} Nd5 {[%emt 0:00:01]} 4. d4 {[%emt 0:00:01]} cxd4 {[%emt 0:00:01]} 5. cxd4 {[%emt 0:00:02]} Nc6 {[%emt 0:00:02]} 6. Nf3 {[%emt 0:00:02]} d6 {[%emt 0:00:01]} 7. Bc4 {[%emt 0:00:02]} dxe5 {[%emt 0:00:02]} 8. dxe5 {[%emt 0:00:04]} Ndb4 {[%emt 0:00:03]} 9. Qb3 {[%emt 0:00:05]} e6 {[%emt 0:00:01]} 10. a3 {[%emt 0:00:06]} Na5 {[%emt 0:00:07]} 11. Qa4+ {[%emt 0:00:12]} Bd7 {[%emt 0:00:03]} 12. Bb5 {[%emt 0:00:05]} Nc2+ {[%emt 0:00:09]} 13. Qxc2 {[%emt 0:00:03]} Bxb5 {[%emt 0:00:02]} 14. Nc3 {[%emt 0:00:03]} Rc8 {[%emt 0:00:15]} 15. Bg5 {[%emt 0:00:19]} Be7 {[%emt 0:00:11]} 16. Bxe7 {[%emt 0:00:03]} Qxe7 {[%emt 0:00:02]} 17. O-O-O {[%emt 0:00:07]} O-O {[%emt 0:00:07]} 18. Kb1 {[%emt 0:00:04]} Bc4 {[%emt 0:00:04]} 19. Qe4 {[%emt 0:00:14]} Bb3 {[%emt 0:00:08]} 20. Rd4 {[%emt 0:00:06]} Rxc3 {[%emt 0:00:23]} 21. bxc3 {[%emt 0:00:07]} Qxa3 {[%emt 0:00:01]} 22. Qe2 {[%emt 0:00:03]} Bd5 {[%emt 0:00:34]} 23. Qb2 {[%emt 0:00:06]} Qe7 {[%emt 0:00:11]} 24. Rhd1 {[%emt 0:00:08]} h6 {[%emt 0:00:08]} 25. Qb4 {[%emt 0:00:05]} Qc7 {[%emt 0:00:04]} 26. R4d2 {[%emt 0:00:18]} Nc4 {[%emt 0:00:04]} 27. Rd4 {[%emt 0:00:05]} a5 {[%emt 0:00:04]} 28. Qd6 {[%emt 0:00:05]} Nxd6 {[%emt 0:00:02]} 29. exd6 {[%emt 0:00:06]} Qxd6 {[%emt 0:00:03]} 30. c4 {[%emt 0:00:10]} Qb4+ {[%emt 0:00:02]} 0-1

[Event "Queens Festival Final Team 2022"]
[Site "Tornelo"]
[Date "2022.06.26"]
[Round "3.4"]
[White "Davari, Sara"]
[Black "Khalilova, Khadija"]
[Result "1-0"]
[ECO "B40"]
[WhiteElo "1674"]
[BlackElo "1777"]
[Annotator "NA RC"]
[PlyCount "91"]
[EventDate "2022.06.24"]
[EventType "team-tourn"]
[EventCountry "NET"]
[SourceTitle "playchess.com"]
[Source "ChessBase"]
[SourceQuality "1"]
[WhiteTeam "Iran"]
[BlackTeam "Azerbaijan"]
[WhiteTeamCountry "IRI"]
[BlackTeamCountry "AZE"]
[TimeControl "180+2"]

1. e4 {[%emt 0:00:02]} c5 {[%emt 0:00:04]} 2. Nf3 {[%emt 0:00:02]} e6 {[%emt 0:00:04]} 3. b3 {[%emt 0:00:01]} Nc6 {[%emt 0:00:02]} 4. Bb2 {[%emt 0:00:03]} d5 {[%emt 0:00:05]} 5. exd5 {[%emt 0:00:02]} exd5 {[%emt 0:00:02]} 6. d4 {[%emt 0:00:01]} Nf6 {[%emt 0:00:03]} 7. Bd3 {[%emt 0:00:06]} Bd6 {[%emt 0:00:05]} 8. O-O {[%emt 0:00:02]} O-O {[%emt 0:00:02]} 9. dxc5 {[%emt 0:00:01]} Bxc5 {[%emt 0:00:02]} 10. h3 {[%emt 0:00:02]} Be6 {[%emt 0:00:03]} 11. Nc3 {[%emt 0:00:04]} h6 {[%emt 0:00:03]} 12. Ne2 {[%emt 0:00:03]} Rc8 {[%emt 0:00:10]} 13. Nf4 {[%emt 0:00:02]} Ne4 {[%emt 0:00:13]} 14. Bxe4 {[%emt 0:00:18]} dxe4 {[%emt 0:00:06]} 15. Nxe6 {[%emt 0:00:15]} fxe6 {[%emt 0:00:02]} 16. Ne5 {[%emt 0:00:21]} Nxe5 {[%emt 0:00:15]} 17. Bxe5 {[%emt 0:00:04]} Qg5 {[%emt 0:00:02]} 18. Bb2 {[%emt 0:00:17]} Rf3 {[%emt 0:00:17]} 19. Qd7 {[%emt 0:00:19]} Rcf8 {[%emt 0:00:19]} 20. Qxg7+ {[%emt 0:00:34]} Qxg7 {[%emt 0:00:03]} 21. Bxg7 {[%emt 0:00:01]} Rxf2 {[%emt 0:00:15]} 22. Bxf8 {[%emt 0:00:03]} Rxf8+ {[%emt 0:00:04]} 23. Kh1 {[%emt 0:00:02]} Rf5 {[%emt 0:00:07]} 24. g4 {[%emt 0:00:05]} Rd5 {[%emt 0:00:05]} 25. Rad1 {[%emt 0:00:03]} e3 {[%emt 0:00:03]} 26. Rxd5 {[%emt 0:00:05]} exd5 {[%emt 0:00:02]} 27. Re1 {[%emt 0:00:03]} Kf7 {[%emt 0:00:02]} 28. Kg2 {[%emt 0:00:02]} Ke6 {[%emt 0:00:02]} 29. Kf3 {[%emt 0:00:01]} Ke5 {[%emt 0:00:02]} 30. c3 {[%emt 0:00:07]} a5 {[%emt 0:00:04]} 31. a4 {[%emt 0:00:06]} b6 {[%emt 0:00:04]} 32. Rxe3+ {[%emt 0:00:06]} Bxe3 {[%emt 0:00:03]} 33. Kxe3 {[%emt 0:00:00]} Ke6 {[%emt 0:00:06]} 34. Kd4 {[%emt 0:00:03]} Kd6 {[%emt 0:00:02]} 35. h4 {[%emt 0:00:01]} Ke6 {[%emt 0:00:02]} 36. g5 {[%emt 0:00:01]} hxg5 {[%emt 0:00:02]} 37. hxg5 {[%emt 0:00:01]} Kf5 {[%emt 0:00:01]} 38. Kxd5 {[%emt 0:00:01]} Kxg5 {[%emt 0:00:01]} 39. Kc6 {[%emt 0:00:01]} Kf5 {[%emt 0:00:02]} 40. Kxb6 {[%emt 0:00:01]} Ke5 {[%emt 0:00:01]} 41. Kxa5 {[%emt 0:00:01]} Ke4 {[%emt 0:00:01]} 42. Kb6 {[%emt 0:00:01]} Kd3 {[%emt 0:00:03]} 43. a5 {[%emt 0:00:00]} Kxc3 {[%emt 0:00:01]} 44. a6 {[%emt 0:00:00]} Kxb3 {[%emt 0:00:02]} 45. a7 {[%emt 0:00:00]} Kc3 {[%emt 0:00:02]} 46. a8=Q {[%emt 0:00:00]} 1-0

[Event "Queens Festival Final Team 2022"]
[Site "Tornelo"]
[Date "2022.06.26"]
[Round "3.4"]
[White "khezrian, Neda"]
[Black "Ismayil, Malak"]
[Result "0-1"]
[ECO "E21"]
[WhiteElo "1056"]
[BlackElo "2001"]
[Annotator "NA RC"]
[PlyCount "50"]
[EventDate "2022.06.24"]
[EventType "team-tourn"]
[EventCountry "NET"]
[SourceTitle "playchess.com"]
[Source "ChessBase"]
[SourceQuality "1"]
[WhiteTeam "Iran"]
[BlackTeam "Azerbaijan"]
[WhiteTeamCountry "IRI"]
[BlackTeamCountry "AZE"]
[TimeControl "180+2"]

1. d4 {[%emt 0:00:02]} Nf6 {[%emt 0:00:06]} 2. Nf3 {[%emt 0:00:04]} e6 {[%emt 0:00:01]} 3. c4 {[%emt 0:00:02]} Bb4+ {[%emt 0:00:02]} 4. Nc3 {[%emt 0:00:02]} O-O {[%emt 0:00:02]} 5. Bf4 {[%emt 0:00:13]} b6 {[%emt 0:00:04]} 6. a3 {[%emt 0:00:11]} Bxc3+ {[%emt 0:00:03]} 7. bxc3 {[%emt 0:00:02]} Bb7 {[%emt 0:00:01]} 8. e3 {[%emt 0:00:07]} d6 {[%emt 0:00:01]} 9. Be2 {[%emt 0:00:06]} Nbd7 {[%emt 0:00:02]} 10. Bg3 {[%emt 0:00:03]} Qe7 {[%emt 0:00:02]} 11. O-O {[%emt 0:00:02]} e5 {[%emt 0:00:04]} 12. dxe5 {[%emt 0:00:03]} dxe5 {[%emt 0:00:02]} 13. Re1 {[%emt 0:00:20]} Rad8 {[%emt 0:00:03]} 14. Qc2 {[%emt 0:00:10]} Ne4 {[%emt 0:00:13]} 15. Rad1 {[%emt 0:00:15]} f6 {[%emt 0:00:04]} 16. Bd3 {[%emt 0:00:22]} Ndc5 {[%emt 0:00:03]} 17. Bxe4 {[%emt 0:00:06]} Bxe4 {[%emt 0:00:02]} 18. Qc1 {[%emt 0:00:11]} Nd3 {[%emt 0:00:04]} 19. Qa1 {[%emt 0:00:16]} Nxe1 {[%emt 0:00:13]} 20. Rxe1 {[%emt 0:00:11]} Bxf3 {[%emt 0:00:03]} 21. gxf3 {[%emt 0:00:03]} Qc5 {[%emt 0:00:02]} 22. f4 {[%emt 0:00:14]} e4 {[%emt 0:00:02]} 23. Rf1 {[%emt 0:00:19]} Qxc4 {[%emt 0:00:04]} 24. f3 {[%emt 0:00:13]} exf3 {[%emt 0:00:03]} 25. Rxf3 {[%emt 0:00:02]} Qe2 {[%emt 0:00:04]} 0-1

[Event "Queens Festival Final Team 2022"]
[Site "Tornelo"]
[Date "2022.06.26"]
[Round "3.4"]
[White "Bakhshizada, Asnad"]
[Black "Khezrian, Nooralzahra"]
[Result "1-0"]
[ECO "E92"]
[WhiteElo "1052"]
[BlackElo "1269"]
[Annotator "NA RC"]
[PlyCount "143"]
[EventDate "2022.06.24"]
[EventType "team-tourn"]
[EventCountry "NET"]
[SourceTitle "playchess.com"]
[Source "ChessBase"]
[SourceQuality "1"]
[WhiteTeam "Azerbaijan"]
[BlackTeam "Iran"]
[WhiteTeamCountry "AZE"]
[BlackTeamCountry "IRI"]
[TimeControl "180+2"]

1. d4 {[%emt 0:00:02]} Nf6 {[%emt 0:00:04]} 2. c4 {[%emt 0:00:03]} g6 {[%emt 0:00:02]} 3. Nc3 {[%emt 0:00:01]} Bg7 {[%emt 0:00:02]} 4. e4 {[%emt 0:00:02]} d6 {[%emt 0:00:01]} 5. Nf3 {[%emt 0:00:02]} O-O {[%emt 0:00:01]} 6. Be2 {[%emt 0:00:04]} e5 {[%emt 0:00:05]} 7. d5 {[%emt 0:00:04]} a6 {[%emt 0:00:04]} 8. O-O {[%emt 0:00:03]} Ne8 {[%emt 0:00:17]} 9. Bg5 {[%emt 0:00:04]} f6 {[%emt 0:00:03]} 10. Be3 {[%emt 0:00:05]} f5 {[%emt 0:00:05]} 11. Bg5 {[%emt 0:00:02]} Nf6 {[%emt 0:00:02]} 12. exf5 {[%emt 0:00:02]} gxf5 {[%emt 0:00:04]} 13. Qc2 {[%emt 0:00:08]} Qe8 {[%emt 0:00:11]} 14. Nh4 {[%emt 0:00:09]} e4 {[%emt 0:00:16]} 15. g3 {[%emt 0:00:36]} h6 {[%emt 0:00:06]} 16. Be3 {[%emt 0:00:08]} Nbd7 {[%emt 0:00:11]} 17. Nxf5 {[%emt 0:00:09]} Ne5 {[%emt 0:00:06]} 18. Nxg7 {[%emt 0:00:07]} Kxg7 {[%emt 0:00:01]} 19. Nxe4 {[%emt 0:00:12]} Bf5 {[%emt 0:00:05]} 20. Nxf6 {[%emt 0:00:14]} Bxc2 {[%emt 0:00:27]} 21. Nxe8+ {[%emt 0:00:03]} Raxe8 {[%emt 0:00:02]} 22. Bd4 {[%emt 0:00:04]} Kh7 {[%emt 0:00:16]} 23. Bh5 {[%emt 0:00:05]} Re7 {[%emt 0:00:12]} 24. c5 {[%emt 0:00:11]} Rf5 {[%emt 0:00:09]} 25. Be2 {[%emt 0:00:08]} Be4 {[%emt 0:00:18]} 26. Bxe5 {[%emt 0:00:08]} Rfxe5 {[%emt 0:00:19]} 27. cxd6 {[%emt 0:00:05]} cxd6 {[%emt 0:00:02]} 28. Bc4 {[%emt 0:00:02]} Bxd5 {[%emt 0:00:04]} 29. Bxd5 {[%emt 0:00:04]} Rxd5 {[%emt 0:00:01]} 30. Rad1 {[%emt 0:00:01]} Rb5 {[%emt 0:00:11]} 31. b3 {[%emt 0:00:07]} d5 {[%emt 0:00:03]} 32. Rd3 {[%emt 0:00:05]} Re2 {[%emt 0:00:04]} 33. a4 {[%emt 0:00:04]} Rc5 {[%emt 0:00:04]} 34. Kg2 {[%emt 0:00:16]} Rcc2 {[%emt 0:00:01]} 35. Rxd5 {[%emt 0:00:05]} Rb2 {[%emt 0:00:01]} 36. Rd7+ {[%emt 0:00:02]} Kg6 {[%emt 0:00:02]} 37. Rxb7 {[%emt 0:00:02]} h5 {[%emt 0:00:01]} 38. Rb6+ {[%emt 0:00:01]} Kg5 {[%emt 0:00:01]} 39. b4 {[%emt 0:00:07]} Ra2 {[%emt 0:00:03]} 40. Rxa6 {[%emt 0:00:02]} h4 {[%emt 0:00:02]} 41. Ra5+ {[%emt 0:00:02]} Kg6 {[%emt 0:00:03]} 42. b5 {[%emt 0:00:06]} Re4 {[%emt 0:00:06]} 43. Ra6+ {[%emt 0:00:04]} Kg5 {[%emt 0:00:02]} 44. a5 {[%emt 0:00:01]} h3+ {[%emt 0:00:04]} 45. Kxh3 {[%emt 0:00:08]} Re5 {[%emt 0:00:01]} 46. b6 {[%emt 0:00:03]} Rexa5 {[%emt 0:00:02]} 47. Rxa5+ {[%emt 0:00:02]} Rxa5 {[%emt 0:00:02]} 48. Rb1 {[%emt 0:00:01]} Ra8 {[%emt 0:00:01]} 49. b7 {[%emt 0:00:02]} Rb8 {[%emt 0:00:01]} 50. f4+ {[%emt 0:00:01]} Kf5 {[%emt 0:00:01]} 51. Kg2 {[%emt 0:00:02]} Kg4 {[%emt 0:00:03]} 52. h3+ {[%emt 0:00:02]} Kf5 {[%emt 0:00:03]} 53. Kf3 {[%emt 0:00:02]} Ke6 {[%emt 0:00:04]} 54. g4 {[%emt 0:00:01]} Kd6 {[%emt 0:00:02]} 55. Ke4 {[%emt 0:00:03]} Re8+ {[%emt 0:00:02]} 56. Kf5 {[%emt 0:00:02]} Rf8+ {[%emt 0:00:02]} 57. Kg6 {[%emt 0:00:01]} Rg8+ {[%emt 0:00:01]} 58. Kf7 {[%emt 0:00:02]} Rb8 {[%emt 0:00:01]} 59. f5 {[%emt 0:00:02]} Kd7 {[%emt 0:00:02]} 60. g5 {[%emt 0:00:01]} Kd6 {[%emt 0:00:02]} 61. g6 {[%emt 0:00:02]} Ke5 {[%emt 0:00:05]} 62. g7 {[%emt 0:00:02]} Rd8 {[%emt 0:00:02]} 63. b8=Q+ {[%emt 0:00:06]} Rxb8 {[%emt 0:00:01]} 64. Rxb8 {[%emt 0:00:02]} Kf4 {[%emt 0:00:01]} 65. g8=Q {[%emt 0:00:03]} Ke4 {[%emt 0:00:02]} 66. Qg4+ {[%emt 0:00:01]} Ke3 {[%emt 0:00:02]} 67. Rb3+ {[%emt 0:00:02]} Kd2 {[%emt 0:00:01]} 68. Qg2+ {[%emt 0:00:02]} Kc1 {[%emt 0:00:01]} 69. Re3 {[%emt 0:00:03]} Kd1 {[%emt 0:00:02]} 70. Qe2+ {[%emt 0:00:01]} Kc1 {[%emt 0:00:02]} 71. Rg3 {[%emt 0:00:02]} Kb1 {[%emt 0:00:01]} 72. Rg1# {[%emt 0:00:02]} 1-0

[Event "Queens Festival Final Team 2022"]
[Site "Tornelo"]
[Date "2022.06.26"]
[Round "3.5"]
[White "Ovezdurdiyeva, Jemal"]
[Black "Shriyan santosh Priyasha"]
[Result "1-0"]
[ECO "D94"]
[WhiteElo "2061"]
[BlackElo "1597"]
[Annotator "NA RC"]
[PlyCount "75"]
[EventDate "2022.06.24"]
[EventType "team-tourn"]
[EventCountry "NET"]
[SourceTitle "playchess.com"]
[Source "ChessBase"]
[SourceQuality "1"]
[WhiteTeam "Turkmenistan"]
[BlackTeam "MAW"]
[WhiteTeamCountry "TKM"]
[TimeControl "180+2"]

1. d4 {[%emt 0:00:02]} d5 {[%emt 0:00:05]} 2. c4 {[%emt 0:00:02]} c6 {[%emt 0:00:02]} 3. Nf3 {[%emt 0:00:05]} Nf6 {[%emt 0:00:02]} 4. e3 {[%emt 0:00:01]} g6 {[%emt 0:00:01]} 5. Nc3 {[%emt 0:00:02]} Bg7 {[%emt 0:00:02]} 6. Be2 {[%emt 0:00:03]} O-O {[%emt 0:00:02]} 7. O-O {[%emt 0:00:01]} Re8 {[%emt 0:00:04]} 8. b3 {[%emt 0:00:02]} Nbd7 {[%emt 0:00:03]} 9. Bb2 {[%emt 0:00:02]} Qc7 {[%emt 0:00:29]} 10. Rc1 {[%emt 0:00:03]} Qd8 {[%emt 0:00:02]} 11. Qd2 {[%emt 0:00:04]} e6 {[%emt 0:00:10]} 12. Rfd1 {[%emt 0:00:03]} Qe7 {[%emt 0:00:03]} 13. a4 {[%emt 0:00:03]} Nf8 {[%emt 0:00:07]} 14. Ne5 {[%emt 0:00:06]} h5 {[%emt 0:00:04]} 15. f4 {[%emt 0:00:04]} N8h7 {[%emt 0:00:01]} 16. Bf3 {[%emt 0:00:05]} Nd7 {[%emt 0:00:04]} 17. Qf2 {[%emt 0:00:03]} Nxe5 {[%emt 0:00:11]} 18. fxe5 {[%emt 0:00:02]} Ng5 {[%emt 0:00:03]} 19. Be2 {[%emt 0:00:02]} Qd8 {[%emt 0:00:09]} 20. Bd3 {[%emt 0:00:05]} Nh7 {[%emt 0:00:10]} 21. Rf1 {[%emt 0:00:01]} Qd7 {[%emt 0:00:04]} 22. e4 {[%emt 0:00:03]} dxe4 {[%emt 0:00:04]} 23. Nxe4 {[%emt 0:00:01]} b6 {[%emt 0:00:10]} 24. Nd6 {[%emt 0:00:02]} Rf8 {[%emt 0:00:05]} 25. Ba3 {[%emt 0:00:01]} Ba6 {[%emt 0:00:23]} 26. Be4 {[%emt 0:00:12]} Ng5 {[%emt 0:00:12]} 27. Bb1 {[%emt 0:00:02]} c5 {[%emt 0:00:05]} 28. dxc5 {[%emt 0:00:05]} bxc5 {[%emt 0:00:12]} 29. Bxc5 {[%emt 0:00:03]} Bxe5 {[%emt 0:00:08]} 30. Ne4 {[%emt 0:00:04]} Nxe4 {[%emt 0:00:05]} 31. Bxe4 {[%emt 0:00:01]} Rfc8 {[%emt 0:00:08]} 32. Rcd1 {[%emt 0:00:09]} Qe8 {[%emt 0:00:19]} 33. Bxa8 {[%emt 0:00:02]} Rxa8 {[%emt 0:00:01]} 34. Bd4 {[%emt 0:00:04]} Bg7 {[%emt 0:00:05]} 35. Bxg7 {[%emt 0:00:02]} Kxg7 {[%emt 0:00:00]} 36. Qf6+ {[%emt 0:00:01]} Kg8 {[%emt 0:00:02]} 37. Rd4 {[%emt 0:00:02]} Rb8 {[%emt 0:00:06]} 38. Rfd1 {[%emt 0:00:03]} 1-0

[Event "Queens Festival Final Team 2022"]
[Site "Tornelo"]
[Date "2022.06.26"]
[Round "3.5"]
[White "Agajanova, Meryem"]
[Black "Nkhoma, Desiderata"]
[Result "1-0"]
[ECO "A38"]
[WhiteElo "1783"]
[BlackElo "1465"]
[Annotator "NA RC"]
[PlyCount "75"]
[EventDate "2022.06.24"]
[EventType "team-tourn"]
[EventCountry "NET"]
[SourceTitle "playchess.com"]
[Source "ChessBase"]
[SourceQuality "1"]
[WhiteTeam "Turkmenistan"]
[BlackTeam "MAW"]
[WhiteTeamCountry "TKM"]
[TimeControl "180+2"]

1. d4 {[%emt 0:00:02]} d6 {[%emt 0:00:10]} 2. Nf3 {[%emt 0:00:02]} Nf6 {[%emt 0:00:02]} 3. g3 {[%emt 0:00:02]} g6 {[%emt 0:00:02]} 4. Bg2 {[%emt 0:00:01]} Bg7 {[%emt 0:00:02]} 5. O-O {[%emt 0:00:01]} O-O {[%emt 0:00:03]} 6. c4 {[%emt 0:00:02]} c5 {[%emt 0:00:04]} 7. Nc3 {[%emt 0:00:03]} cxd4 {[%emt 0:00:06]} 8. Nxd4 {[%emt 0:00:01]} Bd7 {[%emt 0:00:10]} 9. b3 {[%emt 0:00:06]} Nc6 {[%emt 0:00:05]} 10. Nc2 {[%emt 0:00:07]} Rb8 {[%emt 0:00:06]} 11. Bb2 {[%emt 0:00:03]} Qc8 {[%emt 0:00:07]} 12. e4 {[%emt 0:00:05]} Bh3 {[%emt 0:00:03]} 13. Rb1 {[%emt 0:00:09]} Bxg2 {[%emt 0:00:06]} 14. Kxg2 {[%emt 0:00:01]} Ne5 {[%emt 0:00:07]} 15. Ne3 {[%emt 0:00:05]} h5 {[%emt 0:00:17]} 16. Ncd5 {[%emt 0:00:08]} Nxd5 {[%emt 0:00:14]} 17. Nxd5 {[%emt 0:00:02]} Qg4 {[%emt 0:00:08]} 18. Qxg4 {[%emt 0:00:17]} Nxg4 {[%emt 0:00:10]} 19. Nxe7+ {[%emt 0:00:03]} Kh8 {[%emt 0:00:05]} 20. Bxg7+ {[%emt 0:00:05]} Kxg7 {[%emt 0:00:04]} 21. Nd5 {[%emt 0:00:05]} Rbc8 {[%emt 0:00:12]} 22. Rbd1 {[%emt 0:00:07]} Rc6 {[%emt 0:00:11]} 23. Rfe1 {[%emt 0:00:04]} Ra6 {[%emt 0:00:11]} 24. Re2 {[%emt 0:00:11]} Rc6 {[%emt 0:00:04]} 25. Red2 {[%emt 0:00:11]} a6 {[%emt 0:00:04]} 26. Nc3 {[%emt 0:00:23]} Rd8 {[%emt 0:00:07]} 27. h3 {[%emt 0:00:09]} Ne5 {[%emt 0:00:09]} 28. f4 {[%emt 0:00:07]} Nd7 {[%emt 0:00:14]} 29. Rxd6 {[%emt 0:00:02]} Rxd6 {[%emt 0:00:08]} 30. Rxd6 {[%emt 0:00:02]} Kf8 {[%emt 0:00:04]} 31. e5 {[%emt 0:00:12]} Ke7 {[%emt 0:00:03]} 32. Nd5+ {[%emt 0:00:02]} Ke8 {[%emt 0:00:04]} 33. Kf3 {[%emt 0:00:08]} Nc5 {[%emt 0:00:06]} 34. Rxd8+ {[%emt 0:00:02]} Kxd8 {[%emt 0:00:04]} 35. g4 {[%emt 0:00:08]} hxg4+ {[%emt 0:00:07]} 36. hxg4 {[%emt 0:00:02]} Kd7 {[%emt 0:00:03]} 37. f5 {[%emt 0:00:02]} gxf5 {[%emt 0:00:10]} 38. gxf5 {[%emt 0:00:01]} 1-0

[Event "Queens Festival Final Team 2022"]
[Site "Tornelo"]
[Date "2022.06.26"]
[Round "3.6"]
[White "Banda Natalie Katlo"]
[Black "Muthoni, Vivian"]
[Result "1-0"]
[ECO "A45"]
[WhiteElo "1629"]
[BlackElo "1128"]
[Annotator "NA RC"]
[PlyCount "53"]
[EventDate "2022.06.24"]
[EventType "team-tourn"]
[EventCountry "NET"]
[SourceTitle "playchess.com"]
[Source "ChessBase"]
[SourceQuality "1"]
[WhiteTeam "Botswana"]
[BlackTeam "Kenya"]
[WhiteTeamCountry "BOT"]
[BlackTeamCountry "KEN"]
[TimeControl "180+2"]

1. d4 {[%emt 0:00:02]} Nf6 {[%emt 0:00:07]} 2. Bg5 {[%emt 0:00:06]} g6 {[%emt 0:00:03]} 3. Bxf6 {[%emt 0:00:02]} exf6 {[%emt 0:00:06]} 4. e3 {[%emt 0:00:02]} Bg7 {[%emt 0:00:06]} 5. Bd3 {[%emt 0:00:03]} O-O {[%emt 0:00:03]} 6. h4 {[%emt 0:00:06]} d5 {[%emt 0:00:10]} 7. h5 {[%emt 0:00:05]} f5 {[%emt 0:00:06]} 8. hxg6 {[%emt 0:00:16]} fxg6 {[%emt 0:00:05]} 9. c4 {[%emt 0:00:04]} c6 {[%emt 0:00:16]} 10. Nc3 {[%emt 0:00:11]} Be6 {[%emt 0:00:26]} 11. Qb3 {[%emt 0:00:11]} Qd7 {[%emt 0:00:08]} 12. cxd5 {[%emt 0:00:05]} Bxd5 {[%emt 0:00:09]} 13. Nxd5 {[%emt 0:00:09]} cxd5 {[%emt 0:00:03]} 14. Bb5 {[%emt 0:00:03]} Qd6 {[%emt 0:00:08]} 15. Nf3 {[%emt 0:00:11]} Nd7 {[%emt 0:00:15]} 16. Bxd7 {[%emt 0:00:09]} Qxd7 {[%emt 0:00:05]} 17. Ng5 {[%emt 0:00:10]} h6 {[%emt 0:00:09]} 18. Nh3 {[%emt 0:00:02]} Qf7 {[%emt 0:00:10]} 19. Nf4 {[%emt 0:00:05]} Rfd8 {[%emt 0:00:09]} 20. Rc1 {[%emt 0:00:09]} b6 {[%emt 0:00:05]} 21. Rc6 {[%emt 0:00:04]} g5 {[%emt 0:00:07]} 22. Nh5 {[%emt 0:00:12]} Rd7 {[%emt 0:00:10]} 23. Nxg7 {[%emt 0:00:03]} Qxg7 {[%emt 0:00:04]} 24. Rcxh6 {[%emt 0:00:03]} Rf8 {[%emt 0:00:23]} 25. Qb5 {[%emt 0:00:13]} Rc7 {[%emt 0:00:08]} 26. Qxd5+ {[%emt 0:00:05]} Rff7 {[%emt 0:00:07]} 27. Qd8+ {[%emt 0:00:07]} 1-0

[Event "Queens Festival Final Team 2022"]
[Site "Tornelo"]
[Date "2022.06.26"]
[Round "3.6"]
[White "Shah, Riya"]
[Black "Marape, Naledi"]
[Result "1-0"]
[ECO "A45"]
[WhiteElo "1559"]
[BlackElo "1707"]
[Annotator "NA RC"]
[PlyCount "87"]
[EventDate "2022.06.24"]
[EventType "team-tourn"]
[EventCountry "NET"]
[SourceTitle "playchess.com"]
[Source "ChessBase"]
[SourceQuality "1"]
[WhiteTeam "Kenya"]
[BlackTeam "Botswana"]
[WhiteTeamCountry "KEN"]
[BlackTeamCountry "BOT"]
[TimeControl "180+2"]

1. d4 {[%emt 0:00:02]} Nf6 {[%emt 0:00:08]} 2. e3 {[%emt 0:00:02]} g6 {[%emt 0:00:03]} 3. Bd3 {[%emt 0:00:02]} Bg7 {[%emt 0:00:03]} 4. f4 {[%emt 0:00:01]} O-O {[%emt 0:00:04]} 5. Nf3 {[%emt 0:00:02]} d6 {[%emt 0:00:03]} 6. O-O {[%emt 0:00:02]} c5 {[%emt 0:00:02]} 7. c3 {[%emt 0:00:02]} d5 {[%emt 0:00:03]} 8. Ne5 {[%emt 0:00:02]} c4 {[%emt 0:00:03]} 9. Bc2 {[%emt 0:00:01]} b5 {[%emt 0:00:02]} 10. a4 {[%emt 0:00:03]} b4 {[%emt 0:00:05]} 11. cxb4 {[%emt 0:00:08]} Qb6 {[%emt 0:00:07]} 12. Bd2 {[%emt 0:00:15]} Nc6 {[%emt 0:00:07]} 13. b5 {[%emt 0:00:13]} Nxe5 {[%emt 0:00:10]} 14. fxe5 {[%emt 0:00:02]} Nd7 {[%emt 0:00:07]} 15. b3 {[%emt 0:00:02]} a6 {[%emt 0:00:04]} 16. bxc4 {[%emt 0:00:08]} dxc4 {[%emt 0:00:05]} 17. Nc3 {[%emt 0:00:12]} axb5 {[%emt 0:00:07]} 18. axb5 {[%emt 0:00:03]} Rb8 {[%emt 0:00:09]} 19. Nd5 {[%emt 0:00:13]} Qxb5 {[%emt 0:00:06]} 20. Nxe7+ {[%emt 0:00:03]} Kh8 {[%emt 0:00:04]} 21. Ba4 {[%emt 0:00:04]} Qb7 {[%emt 0:00:14]} 22. Rb1 {[%emt 0:00:08]} Qa8 {[%emt 0:00:13]} 23. Nxc8 {[%emt 0:00:15]} Rxb1 {[%emt 0:00:17]} 24. Qxb1 {[%emt 0:00:03]} Qxa4 {[%emt 0:00:02]} 25. Nd6 {[%emt 0:00:05]} Qa7 {[%emt 0:00:08]} 26. Rxf7 {[%emt 0:00:13]} Rxf7 {[%emt 0:00:06]} 27. Nxf7+ {[%emt 0:00:01]} Kg8 {[%emt 0:00:01]} 28. Qf1 {[%emt 0:00:04]} Nc5 {[%emt 0:00:11]} 29. Nd6 {[%emt 0:00:08]} Nb3 {[%emt 0:00:09]} 30. Qxc4+ {[%emt 0:00:03]} Kh8 {[%emt 0:00:06]} 31. Qxb3 {[%emt 0:00:01]} h6 {[%emt 0:00:13]} 32. Nf7+ {[%emt 0:00:08]} Kh7 {[%emt 0:00:06]} 33. e6 {[%emt 0:00:03]} Qe7 {[%emt 0:00:06]} 34. Kf2 {[%emt 0:00:05]} Qf6+ {[%emt 0:00:09]} 35. Ke2 {[%emt 0:00:02]} Qe7 {[%emt 0:00:13]} 36. d5 {[%emt 0:00:02]} Bf6 {[%emt 0:00:03]} 37. d6 {[%emt 0:00:02]} Qe8 {[%emt 0:00:04]} 38. d7 {[%emt 0:00:04]} Qf8 {[%emt 0:00:04]} 39. Bb4 {[%emt 0:00:02]} Qb8 {[%emt 0:00:04]} 40. e7 {[%emt 0:00:07]} Bxe7 {[%emt 0:00:03]} 41. d8=Q {[%emt 0:00:11]} Bxd8 {[%emt 0:00:04]} 42. Nxd8 {[%emt 0:00:01]} Qxd8 {[%emt 0:00:02]} 43. Qf7+ {[%emt 0:00:02]} Kh8 {[%emt 0:00:03]} 44. Bc3+ {[%emt 0:00:01]} 1-0